bitfinex/quotes_SOLUSD_20240621
["timestamp","ask_amount","ask_price","bid_price","bid_amount"]
[1718960164057,6.1328,130.45,130.41,0.34]
[1718960164376,6.1326,130.45,130.41,0.34]
[1718960164988,6.133,130.44,130.41,0.34]
[1718960165188,6.1333,130.44,130.41,0.34]
[1718960165378,6.1333,130.44,130.4,6.1899]
[1718960165379,20.0,130.52,130.4,6.1899]
[1718960165584,6.1337,130.43,130.4,6.1899]
[1718960166073,6.1332,130.44,130.4,6.1899]
[1718960166253,6.1336,130.43,130.4,6.1899]
[1718960166457,6.1341,130.42,130.4,6.1899]
[1718960166681,6.1344,130.41,130.4,6.1899]
[1718960167062,6.1354,130.39,130.38,1.77423915]
[1718960167463,34.63,130.49,130.38,1.77423915]
[1718960167464,6.1351,130.4,130.38,1.77423915]
[1718960167653,6.1354,130.39,130.38,1.77423915]
[1718960168671,6.1354,130.39,130.36,6.0568]
[1718960168672,6.1363,130.37,130.36,6.0568]
[1718960169564,42.57469342,130.46,130.34,0.8569535]
[1718960169777,65.0,130.45,130.34,0.8569535]
[1718960170487,72.94608912,130.45,130.34,0.8569535]
[1718960171081,272.94608912,130.45,130.34,0.8569535]
[1718960171294,172.94608912,130.45,130.34,0.8569535]
[1718960171490,34.63,130.42,130.34,0.8569535]
[1718960171702,15.9832,130.4,130.34,0.8569535]
[1718960171987,20.0,130.39,130.34,0.8569535]
[1718960172199,34.63,130.38,130.34,0.8569535]
[1718960172500,20.0,130.37,130.34,0.8569535]
[1718960173159,20.0,130.37,130.29,15.11292391]
[1718960173765,45.0,130.36,130.29,15.11292391]
[1718960173965,1.7354,130.34,130.29,15.11292391]
[1718960174381,1.7354,130.34,130.21,0.8569535]
[1718960174382,0.8785,130.29,130.21,0.8569535]
[1718960174562,255.1,130.3,130.21,0.8569535]
[1718960174771,34.63,130.28,130.21,0.8569535]
[1718960175385,255.1,130.3,130.21,0.8569535]
[1718960175770,34.63,130.32,130.22,6.4519]
[1718960177079,34.63,130.32,130.23,0.17]
[1718960177285,4.62133532,130.38,130.24,6.1421]
[1718960177510,34.63,130.36,130.25,0.17]
[1718960177794,34.63,130.36,130.24,1.77614635]
[1718960178906,20.0,130.35,130.22,6.4519]
[1718960179065,20.0,130.35,130.22,12.5951]
[1718960179266,20.0,130.35,130.22,8.22831914]
[1718960179691,20.0,130.36,130.23,0.17]
[1718960179873,4.62133532,130.38,130.26,6.1413]
[1718960180073,4.62133532,130.38,130.27,0.34]
[1718960180787,4.62133532,130.38,130.22,8.22831914]
[1718960180969,34.72,130.36,130.22,8.22831914]
[1718960181385,100.0,130.34,130.22,8.22831914]
[1718960181588,34.72,130.3,130.22,1.77641914]
[1718960181792,20.0,130.29,130.22,1.77641914]
[1718960182284,20.0,130.29,130.21,0.8569535]
[1718960184369,8.16076693,130.34,130.21,0.8569535]
[1718960184569,51.224254,130.37,130.21,0.8569535]
[1718960184776,51.224254,130.37,130.21,20.8569535]
[1718960185091,151.224254,130.37,130.21,0.8569535]
[1718960185267,34.72,130.33,130.21,0.8569535]
[1718960185662,34.72,130.33,130.22,0.17]
[1718960185881,34.72,130.33,130.22,0.34]
[1718960186480,20.0,130.32,130.22,0.34]
[1718960186990,51.224254,130.37,130.22,0.17]
[1718960187194,65.0,130.36,130.23,6.1427]
[1718960187366,65.0,130.36,130.22,0.17]
[1718960187985,200.0,130.35,130.21,0.8569535]
[1718960188184,65.0,130.34,130.21,0.8569535]
[1718960188392,72.94095154,130.36,130.21,0.8569535]
[1718960188393,20.0,130.33,130.21,0.8569535]
[1718960188689,172.94095154,130.36,130.21,0.8569535]
[1718960189080,428.04095154,130.36,130.21,0.8569535]
[1718960189275,34.72,130.33,130.21,0.8569535]
[1718960189478,65.0,130.32,130.21,0.8569535]
[1718960189679,165.0,130.32,130.21,0.8569535]
[1718960189886,65.0,130.32,130.21,0.8569535]
[1718960190189,165.0,130.32,130.21,0.8569535]
[1718960190379,2.4321,130.31,130.21,0.8569535]
[1718960190579,34.72,130.29,130.21,0.8569535]
[1718960190781,65.0,130.28,130.21,0.8569535]
[1718960191973,20.0,130.28,130.21,0.8569535]
[1718960192184,100.0,130.27,130.21,0.8569535]
[1718960192382,34.72,130.22,130.08,0.8569535]
[1718960192894,20.0,130.21,130.08,0.8569535]
[1718960193102,20.0,130.21,130.08,7.0069535]
[1718960193271,20.0,130.21,130.08,6.0068535]
[1718960193468,20.0,130.21,130.06,38.10844403]
[1718960193771,20.0,130.21,130.05,21.622]
[1718960193772,34.72,130.27,130.08,9.979991]
[1718960193973,65.0,130.26,130.07,38.01898959]
[1718960194173,20.0,130.26,130.08,21.965091]
[1718960194393,220.0,130.26,130.08,21.965091]
[1718960194686,220.0,130.26,130.08,28.114791]
[1718960194887,34.72,130.22,130.08,21.965091]
[1718960195189,34.72,130.22,130.08,28.114891]
[1718960195391,20.0,130.21,130.08,21.965091]
[1718960195773,45.0,130.2,130.08,21.965091]
[1718960195969,20.0,130.19,130.08,21.965091]
[1718960197292,45.0,130.18,130.08,6.563891]
[1718960197589,54.72,130.17,130.08,6.563891]
[1718960197981,54.72,130.17,130.04,38.60551451]
[1718960198297,54.72,130.17,130.03,22.3287]
[1718960198298,145.0,130.16,130.03,22.3287]
[1718960198499,134.72,130.13,130.01,15.45133941]
[1718960198674,34.72,130.08,130.01,15.45133941]
[1718960198874,20.0,130.07,130.01,15.45133941]
[1718960199070,8.16076693,130.12,130.01,15.45133941]
[1718960199276,100.0,130.1,130.01,15.45133941]
[1718960199488,216.08686685,130.16,130.01,15.45133941]
[1718960199694,34.72,130.12,130.01,15.45133941]
[1718960199893,20.0,130.11,130.01,15.45133941]
[1718960200198,100.0,130.05,130.01,15.45133941]
[1718960200400,120.0,130.04,130.01,15.45133941]
[1718960200582,100.0,130.02,130.01,13.01923941]
[1718960200916,100.0,130.02,130.0,212.6]
[1718960200917,299.72,130.02,130.0,188.96923941]
[1718960201078,65.0,130.01,130.0,188.96923941]
[1718960201412,79.73251557,130.01,130.0,188.96923941]
[1718960202222,179.73251557,130.01,130.0,188.66253941]
[1718960202392,6.57174864,130.01,130.0,188.66253941]
[1718960202708,34.72,130.04,130.0,188.66253941]
[1718960203277,6.57174864,130.07,130.0,188.66253941]
[1718960203578,100.0,130.09,130.0,188.66253941]
[1718960203793,100.0,130.07,130.0,188.66253941]
[1718960204007,100.0,130.03,130.0,188.66253941]
[1718960204208,100.0,130.01,130.0,188.66253941]
[1718960204383,134.72,130.05,130.0,188.66253941]
[1718960204584,34.72,130.05,130.0,188.66253941]
[1718960204798,106.57174864,130.1,130.0,188.66253941]
[1718960205003,100.0,130.08,130.0,188.66253941]
[1718960205211,106.57174864,130.1,130.0,188.66253941]
[1718960205212,20.0,130.07,130.0,188.66253941]
[1718960205513,6.57174864,130.1,130.0,188.66253941]
[1718960205514,106.57174864,130.1,130.0,188.66253941]
[1718960205697,6.57174864,130.1,130.0,188.66253941]
[1718960206083,106.57174864,130.1,130.0,188.66253941]
[1718960206499,6.57174864,130.1,130.0,188.66253941]
[1718960207012,34.72,130.13,130.0,188.66253941]
[1718960207307,100.0,130.12,130.0,188.66253941]
[1718960207521,100.0,130.08,130.0,188.66253941]
[1718960207886,200.0,130.14,130.0,188.66253941]
[1718960208102,100.0,130.11,130.0,188.66253941]
[1718960208518,65.0,130.1,130.0,188.66253941]
[1718960208882,100.0,130.15,130.0,194.81603941]
[1718960209082,7.91308825,130.09,130.0,194.81593941]
[1718960209285,100.0,130.17,130.0,194.81593941]
[1718960209286,106.57174864,130.17,130.02,22.3454]
[1718960209589,7.92062391,130.1,130.02,22.3454]
[1718960210092,6.57174864,130.17,130.02,22.3454]
[1718960210302,7.92167042,130.13,130.02,22.3454]
[1718960210528,100.0,130.16,130.02,22.3454]
[1718960210686,100.0,130.15,130.02,22.3454]
[1718960210891,7.92675234,130.12,130.02,22.3454]
[1718960211127,100.0,130.15,130.02,22.3454]
[1718960211417,7.92698946,130.11,130.02,22.3454]
[1718960211596,20.0,130.1,130.02,22.3454]
[1718960212019,7.92795417,130.09,130.02,22.3454]
[1718960212186,20.0,130.08,130.02,22.3454]
[1718960212588,7.92795417,130.09,130.02,22.3454]
[1718960212806,100.0,130.14,130.02,22.3454]
[1718960213018,165.0,130.14,130.02,22.3454]
[1718960213215,7.9277861,130.08,130.02,22.3454]
[1718960213417,20.0,130.14,130.02,28.4981]
[1718960213620,120.0,130.14,130.02,22.3454]
[1718960213810,7.89750681,130.09,130.02,22.3454]
[1718960214008,120.0,130.14,130.02,28.498]
[1718960214202,120.0,130.14,130.02,22.3454]
[1718960214425,20.0,130.14,130.02,22.3454]
[1718960214605,200.0,130.19,130.02,22.3454]
[1718960214916,100.0,130.19,130.02,22.3454]
[1718960215218,30.812917,130.16,130.03,0.17]
[1718960215424,100.0,130.19,130.03,6.3222]
[1718960215625,100.0,130.19,130.02,28.6681]
[1718960215922,22.3454,130.18,130.03,6.4922]
[1718960216117,22.3454,130.18,130.03,15.7209]
[1718960216294,22.3454,130.18,130.06,6.1507]
[1718960216493,22.3454,130.18,130.1,15.9132]
[1718960217289,22.3454,130.18,130.11,6.1485]
[1718960217533,5.6788,130.18,130.13,6.1476]
[1718960217689,255.1,130.26,130.1,16.0832]
[1718960217893,7.91793457,130.24,130.1,16.0832]
[1718960218121,16.0832,130.23,130.11,0.17]
[1718960218309,16.0832,130.23,130.1,22.2322]
[1718960218520,16.0832,130.23,130.1,15.9132]
[1718960218721,100.0,130.21,130.1,15.9132]
[1718960218916,100.0,130.22,130.09,6.2909]
[1718960218917,34.72,130.18,130.09,6.2909]
[1718960219098,100.0,130.17,130.09,6.2909]
[1718960219295,34.72,130.14,130.05,15.2337]
[1718960220000,100.0,130.18,130.05,15.2337]
[1718960220001,20.0,130.13,130.05,15.2337]
[1718960220201,20.0,130.17,130.05,15.2337]
[1718960220420,100.0,130.15,130.05,15.2337]
[1718960220606,65.0,130.14,130.05,15.2337]
[1718960220794,20.0,130.14,130.05,15.2337]
[1718960221001,216.0832,130.23,130.07,6.1501]
[1718960221334,34.72,130.21,130.06,6.1583]
[1718960221495,16.0832,130.23,130.1,6.1489]
[1718960221694,16.0832,130.23,130.11,6.1483]
[1718960221935,7.91793457,130.24,130.09,21.4857]
[1718960222106,7.91793457,130.24,130.12,6.1477]
[1718960222423,10.0,130.33,130.12,6.1477]
[1718960222424,200.0,130.31,130.13,66.8257]
[1718960222644,100.0,130.31,130.14,15.368]
[1718960222920,15.3761,130.25,130.15,65.34]
[1718960223138,7.91371751,130.34,130.15,65.34]
[1718960223139,142.63371751,130.34,130.18,6.1449]
[1718960223431,173.40797351,130.34,130.19,6.1443]
[1718960223723,173.40797351,130.34,130.19,6.1445]
[1718960223930,173.40797351,130.34,130.2,6.1443]
[1718960224135,173.40797351,130.34,130.25,6.1583]
[1718960224136,7.91371751,130.34,130.25,6.1583]
[1718960224447,0.8569535,130.41,130.25,6.1583]
[1718960224731,15.3655,130.37,130.25,6.1583]
[1718960225701,100.0,130.36,130.25,6.1583]
[1718960226009,100.0,130.33,130.21,15.3274]
[1718960226603,20.0,130.32,130.21,15.3274]
[1718960226799,20.0,130.34,130.21,15.3274]
[1718960227003,20.0,130.35,130.21,15.3274]
[1718960227234,20.0,130.36,130.22,0.17]
[1718960227606,121.4865,130.38,130.22,6.3133]
[1718960227812,21.4865,130.38,130.24,6.1424]
[1718960228023,7.91269663,130.4,130.23,0.17]
[1718960228340,100.0,130.33,130.21,15.3274]
[1718960228533,200.0,130.35,130.21,15.3274]
[1718960228707,100.0,130.33,130.21,15.3274]
[1718960229035,24.98596398,130.4,130.21,15.3274]
[1718960229036,200.0,130.37,130.21,15.3274]
[1718960229353,100.0,130.31,130.21,15.3274]
[1718960229512,200.0,130.28,130.21,15.3274]
[1718960229714,65.0,130.27,130.21,15.3274]
[1718960231012,255.1,130.31,130.21,15.3274]
[1718960231414,20.0,130.3,130.21,15.3274]
[1718960232128,200.0,130.29,130.2,6.1256]
[1718960232424,20.0,130.3,130.2,6.1256]
[1718960232425,200.0,130.27,130.2,6.1256]
[1718960232622,100.0,130.22,130.15,6.5538]
[1718960232834,45.0,130.21,130.15,6.5538]
[1718960233032,63.0,130.21,130.15,6.5538]
[1718960233233,63.0,130.21,130.11,15.4077]
[1718960233234,100.0,130.17,130.11,15.4077]
[1718960233527,63.0,130.21,130.11,15.4077]
[1718960234334,163.0,130.21,130.11,15.4077]
[1718960234514,100.0,130.19,130.11,15.4077]
[1718960234711,100.0,130.17,130.1,6.1689]
[1718960235029,20.0,130.16,130.1,6.1689]
[1718960235234,45.0,130.15,130.1,6.1689]
[1718960235435,20.0,130.14,130.1,6.1689]
[1718960235730,45.0,130.13,130.1,6.1689]
[1718960235910,20.0,130.12,130.1,6.1689]
[1718960236528,20.0,130.12,130.06,15.9478]
[1718960236737,45.0,130.11,130.06,15.9478]
[1718960236919,20.0,130.12,130.05,6.1386]
[1718960237122,145.0,130.11,130.05,6.1386]
[1718960237326,145.0,130.11,130.01,22.971]
[1718960237327,120.0,130.1,130.01,22.971]
[1718960237537,45.0,130.09,130.01,22.971]
[1718960238042,20.0,130.08,130.01,22.971]
[1718960238515,45.0,130.07,130.01,22.971]
[1718960238721,200.0,130.09,130.01,22.971]
[1718960238722,20.0,130.06,130.01,22.971]
[1718960239031,20.0,130.06,130.01,6.6059]
[1718960239213,45.0,130.05,130.0,188.66253941]
[1718960239413,20.0,130.04,130.0,188.66253941]
[1718960240228,45.0,130.03,130.0,188.66253941]
[1718960240437,20.0,130.02,130.0,188.66253941]
[1718960240942,100.0,130.03,130.0,188.66253941]
[1718960241244,20.0,130.02,130.0,188.66253941]
[1718960241425,20.0,130.04,130.0,188.66253941]
[1718960242424,100.0,130.01,130.0,170.35253941]
[1718960242635,120.0,130.01,130.0,170.35253941]
[1718960243134,20.0,130.01,130.0,170.35253941]
[1718960243525,65.0,130.01,130.0,170.35253941]
[1718960243729,20.0,130.01,130.0,170.35253941]
[1718960244236,120.0,130.01,130.0,170.35253941]
[1718960244438,220.0,130.01,130.0,170.35253941]
[1718960244637,20.0,130.01,130.0,170.35253941]
[1718960244865,220.0,130.01,130.0,170.35253941]
[1718960245146,120.0,130.01,130.0,170.35253941]
[1718960245327,165.0,130.01,130.0,170.35253941]
[1718960245530,27.9090731,130.01,130.0,170.35253941]
[1718960245741,7.9090731,130.01,130.0,170.35253941]
[1718960246055,116.6237,130.12,130.0,170.35253941]
[1718960246056,355.1,130.11,130.0,170.35253941]
[1718960246257,100.0,130.1,130.0,170.35253941]
[1718960246428,200.0,130.09,130.0,170.35253941]
[1718960246754,34.72,130.06,130.0,170.35253941]
[1718960247559,255.1,130.11,130.0,170.35253941]
[1718960247843,20.0,130.1,130.0,170.35253941]
[1718960248062,20.0,130.1,130.01,6.2019]
[1718960248228,100.0,130.11,130.01,6.2019]
[1718960248541,110.0,130.14,130.01,6.2019]
[1718960248724,200.0,130.1,130.01,6.2019]
[1718960248921,10.0,130.14,130.01,6.2019]
[1718960248922,200.0,130.12,130.01,6.2019]
[1718960249141,7.91200761,130.09,130.01,6.2019]
[1718960249523,6.5534,130.17,130.01,6.2019]
[1718960249524,100.0,130.06,130.01,6.2019]
[1718960249737,20.0,130.05,130.01,6.2019]
[1718960250057,100.0,130.05,130.0,170.35253941]
[1718960250222,79.72,130.04,130.0,170.35253941]
[1718960250417,20.0,130.03,130.0,170.35253941]
[1718960250621,45.0,130.02,130.0,170.35253941]
[1718960250848,20.0,130.01,130.0,170.35253941]
[1718960251742,7.91152477,130.08,130.0,170.35253941]
[1718960251947,65.0,130.07,130.0,170.35253941]
[1718960252139,20.0,130.07,130.0,170.35253941]
[1718960252728,100.0,130.06,130.0,170.35253941]
[1718960252931,20.0,130.05,130.0,170.35253941]
[1718960253828,45.0,130.04,130.0,170.35253941]
[1718960254027,20.0,130.03,130.0,170.35253941]
[1718960254240,45.0,130.02,130.0,170.35253941]
[1718960254635,20.0,130.01,130.0,170.35253941]
[1718960254842,100.0,130.06,130.0,170.35253941]
[1718960255049,65.0,130.05,130.0,170.35253941]
[1718960255337,20.0,130.05,130.0,170.35253941]
[1718960255730,20.0,130.07,130.0,170.35253941]
[1718960255931,45.0,130.06,130.0,170.35253941]
[1718960256127,220.0,130.05,130.0,170.35253941]
[1718960256333,100.0,130.03,130.0,170.35253941]
[1718960256550,45.0,130.04,130.0,170.35253941]
[1718960256856,20.0,130.03,130.0,170.35253941]
[1718960257348,7.91152477,130.08,130.0,170.35253941]
[1718960257554,7.91152477,130.08,130.01,22.9742]
[1718960257849,6.6053,130.17,130.01,22.9742]
[1718960257850,100.0,130.12,130.01,22.9742]
[1718960258247,234.72,130.12,130.01,22.9742]
[1718960258435,100.0,130.1,130.01,22.9742]
[1718960258632,200.0,130.05,130.0,170.35253941]
[1718960258845,34.72,130.06,130.0,170.35253941]
[1718960259048,100.0,130.07,130.0,170.35253941]
[1718960259459,200.0,130.09,130.0,170.35253941]
[1718960259632,20.0,130.08,130.01,6.6449]
[1718960259834,20.0,130.1,130.01,6.6449]
[1718960260061,100.0,130.09,130.01,6.6449]
[1718960260360,20.0,130.08,130.01,6.6449]
[1718960260863,27.89246852,130.08,130.01,6.6449]
[1718960261750,145.0,130.07,130.01,6.6449]
[1718960261945,20.0,130.06,130.01,6.6449]
[1718960262438,45.0,130.05,130.0,170.35253941]
[1718960262648,20.0,130.04,130.0,170.35253941]
[1718960263136,20.0,130.07,130.0,170.35253941]
[1718960263347,45.0,130.06,130.0,170.35253941]
[1718960263650,20.0,130.05,130.0,170.35253941]
[1718960264244,20.0,130.06,130.0,170.35253941]
[1718960264541,20.0,130.07,130.0,170.35253941]
[1718960265061,220.0,130.07,130.0,170.35253941]
[1718960265264,45.0,130.06,130.0,170.35253941]
[1718960265451,200.0,130.04,130.0,170.35253941]
[1718960265765,45.0,130.03,130.0,170.35253941]
[1718960266463,45.0,130.04,130.0,170.35253941]
[1718960266847,20.0,130.05,130.0,170.35253941]
[1718960267365,7.89246852,130.08,130.0,170.35253941]
[1718960268269,107.89246852,130.08,130.0,170.35253941]
[1718960268445,7.89246852,130.08,130.0,170.35253941]
[1718960269657,107.89246852,130.08,130.0,170.35253941]
[1718960269868,207.89246852,130.08,130.0,170.35253941]
[1718960270073,107.89246852,130.08,130.0,170.35253941]
[1718960270241,207.89246852,130.08,130.0,170.35253941]
[1718960270460,20.0,130.07,130.0,170.35253941]
[1718960270741,145.0,130.06,130.0,170.35253941]
[1718960270950,20.0,130.05,130.0,170.35253941]
[1718960271367,20.0,130.07,130.0,170.35253941]
[1718960271670,7.88770841,130.07,130.0,170.35253941]
[1718960271859,20.0,130.06,130.0,170.35253941]
[1718960273144,7.88770841,130.07,130.0,170.35253941]
[1718960273569,20.0,130.06,130.0,170.35253941]
[1718960273944,7.88770841,130.07,130.0,170.35253941]
[1718960274469,7.88770841,130.07,130.01,15.6664]
[1718960275544,255.1,130.12,130.02,6.0078]
[1718960275745,100.0,130.15,130.02,6.0078]
[1718960275944,130.82216,130.15,130.02,6.0078]
[1718960276562,482.5,130.17,130.02,6.0078]
[1718960276748,106.57174864,130.19,130.02,6.0078]
[1718960276749,100.0,130.14,130.02,6.0078]
[1718960277062,100.0,130.17,130.02,6.0078]
[1718960277260,100.0,130.17,130.03,45.0]
[1718960277464,455.1,130.2,130.05,22.758]
[1718960277671,200.0,130.2,130.05,22.758]
[1718960277847,100.0,130.18,130.05,22.758]
[1718960278042,30.809342,130.2,130.05,22.758]
[1718960278264,100.0,130.21,130.06,51.4909]
[1718960278444,100.0,130.22,130.06,51.4909]
[1718960278657,130.805588,130.22,130.06,45.34]
[1718960278863,138.71910877,130.22,130.06,45.34]
[1718960279065,38.71910877,130.22,130.07,22.087]
[1718960279459,100.0,130.24,130.08,57.9965]
[1718960279769,107.89768985,130.23,130.08,6.5068]
[1718960280351,207.89768985,130.23,130.08,6.5068]
[1718960280551,7.89768985,130.23,130.08,6.5068]
[1718960280879,7.89768985,130.23,130.09,45.34]
[1718960281054,30.800515,130.24,130.12,6.5068]
[1718960281255,20.0,130.23,130.12,6.5068]
[1718960281447,7.89947956,130.24,130.12,6.5068]
[1718960281769,100.0,130.22,130.12,6.5068]
[1718960281960,100.0,130.23,130.12,6.5068]
[1718960282274,100.0,130.21,130.12,6.5068]
[1718960282649,200.0,130.23,130.12,6.5068]
[1718960282861,20.0,130.22,130.12,6.5068]
[1718960283474,20.0,130.23,130.12,6.5068]
[1718960283780,20.0,130.26,130.12,6.5068]
[1718960284079,100.0,130.26,130.12,6.5068]
[1718960284281,107.89729053,130.27,130.13,45.0]
[1718960284653,107.89729053,130.27,130.12,6.5068]
[1718960284980,7.89729053,130.27,130.13,0.17]
[1718960285149,7.89729053,130.27,130.14,16.4887]
[1718960285350,100.0,130.29,130.15,6.0792]
[1718960285574,100.0,130.3,130.15,6.0792]
[1718960285773,361.67174864,130.31,130.15,6.0792]
[1718960285774,100.0,130.29,130.15,6.0792]
[1718960285976,22.6358,130.3,130.17,15.9991]
[1718960286270,255.1,130.31,130.18,6.0792]
[1718960286869,20.0,130.3,130.18,6.0792]
[1718960287063,200.0,130.29,130.18,6.0792]
[1718960287381,255.1,130.31,130.18,6.0792]
[1718960287382,20.0,130.28,130.18,6.0792]
[1718960287680,200.0,130.27,130.18,6.0792]
[1718960287979,20.0,130.26,130.18,6.0792]
[1718960288552,463.01731986,130.31,130.18,6.0792]
[1718960288553,100.0,130.29,130.18,6.0792]
[1718960288758,363.01731986,130.31,130.18,6.0792]
[1718960288979,263.01731986,130.31,130.18,6.0792]
[1718960289152,263.01731986,130.31,130.2,22.6353]
[1718960289153,255.1,130.31,130.2,22.6353]
[1718960289773,255.1,130.31,130.21,6.1981]
[1718960290072,200.0,130.35,130.21,6.1981]
[1718960290261,16.4372,130.34,130.21,6.1981]
[1718960290467,24.33934678,130.34,130.21,6.1981]
[1718960290973,16.4372,130.34,130.23,6.2741]
[1718960291282,255.1,130.39,130.25,6.2741]
[1718960291584,0.8569535,130.41,130.26,21.6695]
[1718960291794,100.8569535,130.41,130.26,21.8395]
[1718960291969,0.8569535,130.41,130.27,6.2741]
[1718960292280,0.8569535,130.41,130.3,15.3954]
[1718960293358,100.8569535,130.41,130.3,15.3954]
[1718960293660,0.8569535,130.41,130.3,15.3954]
[1718960293859,16.2523535,130.41,130.3,15.3954]
[1718960294055,116.2523535,130.41,130.3,15.3954]
[1718960294274,16.2523535,130.41,130.3,15.3954]
[1718960294588,0.8569535,130.41,130.3,15.3954]
[1718960294783,0.8569535,130.41,130.31,45.0]
[1718960295087,0.8569535,130.41,130.33,6.0558]
[1718960296795,100.0,130.4,130.33,6.0558]
[1718960296969,20.0,130.39,130.33,6.0558]
[1718960297368,20.0,130.39,130.21,21.5342]
[1718960297369,245.0,130.38,130.21,21.5342]
[1718960297588,100.0,130.36,130.21,21.5342]
[1718960297763,20.0,130.35,130.21,21.5342]
[1718960298577,20.0,130.35,130.21,27.6781]
[1718960298891,20.0,130.35,130.22,6.5513]
[1718960299089,100.0,130.37,130.25,6.5513]
[1718960299090,20.0,130.37,130.25,6.5513]
[1718960299278,271.18306414,130.44,130.28,22.9482]
[1718960299279,100.0,130.43,130.28,22.9482]
[1718960299587,20.0,130.43,130.28,29.0885]
[1718960299793,20.0,130.43,130.29,6.5513]
[1718960300088,263.02229721,130.44,130.29,6.5513]
[1718960300278,100.0,130.43,130.29,6.5513]
[1718960300472,263.02229721,130.44,130.29,6.5513]
[1718960300683,100.0,130.43,130.3,61.3969]
[1718960301071,100.0,130.43,130.3,16.3969]
[1718960301271,263.02229721,130.44,130.3,16.3969]
[1718960301472,120.0,130.43,130.3,16.3969]
[1718960301675,20.0,130.43,130.31,6.535]
[1718960302067,120.0,130.43,130.31,6.535]
[1718960302370,20.0,130.43,130.32,16.2629]
[1718960302571,255.1,130.44,130.33,6.535]
[1718960303470,100.0,130.49,130.33,6.535]
[1718960303471,455.1,130.49,130.33,6.535]
[1718960303668,455.1,130.49,130.32,22.4013]
[1718960303669,100.0,130.46,130.35,3.58768]
[1718960303902,16.2629,130.47,130.35,3.58768]
[1718960304484,20.0,130.46,130.36,16.6027]
[1718960304697,255.1,130.49,130.36,16.6027]
[1718960304920,16.2629,130.48,130.36,16.6027]
[1718960305066,7.92239948,130.47,130.36,16.6027]
[1718960305269,355.1,130.49,130.36,16.6027]
[1718960305604,371.7027,130.49,130.36,16.6027]
[1718960305770,379.62696419,130.49,130.36,16.6027]
[1718960305967,20.0,130.48,130.36,16.6027]
[1718960306177,20.0,130.48,130.37,0.17]
[1718960306487,20.0,130.48,130.37,45.34]
[1718960306691,20.0,130.48,130.38,6.0112]
[1718960307781,20.0,130.48,130.39,15.2877]
[1718960308172,20.0,130.52,130.4,45.34]
[1718960308371,7.91230727,130.53,130.41,6.1287]
[1718960308593,7.91230727,130.53,130.4,45.34]
[1718960308594,7.91230727,130.53,130.44,6.1287]
[1718960308898,100.0,130.53,130.44,6.1287]
[1718960309093,7.92099351,130.53,130.44,6.1287]
[1718960309284,0.8569535,130.54,130.44,6.1287]
[1718960309692,8.78013276,130.54,130.44,6.1287]
[1718960309881,100.0,130.53,130.44,6.1287]
[1718960310079,8.78013276,130.54,130.44,6.1287]
[1718960311093,24.50463276,130.54,130.44,6.1287]
[1718960311289,16.5814535,130.54,130.44,6.1287]
[1718960311499,20.0,130.53,130.44,6.1287]
[1718960311695,20.8569535,130.54,130.44,6.1287]
[1718960311995,0.8569535,130.54,130.44,6.1287]
[1718960313393,0.8569535,130.54,130.45,51.4722]
[1718960313598,0.8569535,130.54,130.46,22.6995]
[1718960314295,7.93036493,130.61,130.49,12.4418]
[1718960314493,200.0,130.65,130.49,6.3116]